Cogmind - Beta 14 @@@ ROGUE MODE // 2024.12.05 @ 18:32:21 Player: mehbruh Result: Core destroyed Performance ------------- Evolutions (0) 0 Regions Visited (1) 200 Robots Destroyed (25) 125 Value Destroyed (488) 488 Prototype IDs (0) 0 Alien Tech Used (0) 0 Bonus (0) 0 TOTAL SCORE: 813 Bonus ------- None Cogmind --------- Core Integrity 0/250 Matter 290/300 Energy 100/100 System Corruption 33% Temperature Cool (0) Movement Core (450) Ox8 Location -10/Materials Parts ------- > --- POWER (1) -------- Ion Engine > --- PROPULSION (2) --- Light Treads Light Treads > --- UTILITY (2) ------ Large Storage Unit > --- WEAPON (2) ------- Flail > --- INVENTORY (15) --- Ion Engine Light Treads Compact Wheel Huge Storage Unit Medium Laser Light Assault Rifle Autogun Autogun Autogun Autogun Grenade Launcher Grenade Launcher Grenade Launcher Datajack Peak State ------------ > --- POWER ------------ Ion Engine > --- PROPULSION ------- Light Treads Light Treads > --- UTILITY ---------- Large Storage Unit Seismic Detector > --- WEAPON ----------- EM Pulse Gun EM Pulse Gun > --- INVENTORY -------- Ion Engine Light Treads Compact Wheel Huge Storage Unit Medium Laser Light Assault Rifle Autogun Autogun Autogun Autogun Grenade Launcher Grenade Launcher Grenade Launcher Datajack Flail [Rating: 9] Favorites ----------- Power Light Ion Engine Engine Light Ion Engine Propulsion Light Treads Treads Light Treads Utility Seismic Detector Device Seismic Detector Storage Large Storage Unit Weapon EM Pulse Gun Energy Gun EM Pulse Gun Impact Weapon Flail Build | -11 -10 ------- Run | Yrd Mat Slots Evolved . | . . Power . | . . Propulsion . | . . Utility . | . . Weapon . | . . Parts Attached 17 | 7 10 Power 2 | 1 1 Engine 2 | 1 1 Core . | . . Reactor . | . . Propulsion 3 | 2 1 Treads 3 | 2 1 Leg . | . . Wheel . | . . Hover . | . . Flight . | . . Utility 4 | 2 2 Device 1 | 1 . Storage 3 | 1 2 Processor . | . . Hackware . | . . Protection . | . . Artifact . | . . Weapon 8 | 2 6 Energy Gun 7 | 2 5 Energy Cannon . | . . Ballistic Gun . | . . Ballistic Cannon . | . . Launcher . | . . Special Weapon . | . . Impact Weapon 1 | . 1 Slashing Weapon . | . . Piercing Weapon . | . . Special Melee Weapon . | . . Unidentified Prototypes . | . . Parts Lost 3 | . 3 Power . | . . Propulsion . | . . Utility 1 | . 1 Weapon 2 | . 2 Highest Loss Streak 2 | . 2 To Critical Strikes . | . . Average Slot Usage (%) 96 | . 96 Engine 14 | . 14 Treads 28 | . 28 Device 12 | . 12 Storage 14 | . 14 Energy Gun 22 | . 22 Impact Weapon 3 | . 3 Peak Build Rating 9 | 7 9 Average Rating 7 | 4 7 On Entrance 3 | . 7 Naked Turns . | . . Heaviest Build 30 | 13 30 Greatest Support 40 | 40 40 Greatest Overweight (x) . | . . Average Overweight (x) . | . . Largest Inventory Capacity 15 | 8 15 Average Capacity 13 | 6 13 Most Carried 15 | 5 15 Average Carried 8 | 3 9 Final Capacity 15 | 8 15 Final Carried 14 | 3 14 Class Distribution -------------------- 100% | Mutant Dominant Class ---------------- Mutant | -10/Materials Resources | -11 -10 ----------- Run | Yrd Mat Matter Collected 358 | 199 159 Remotely . | . . Salvage Created 868 | 56 812 Parts 57 | 6 51 Haulers Intercepted 2 | . 2 Recyclers Shooed 1 | . 1 Parts Field Recycled . | . . Retrieved Matter . | . . Parts Self-Destructed . | . . Prevented . | . . Kills | -11 -10 ------- Run | Yrd Mat Combat Hostiles Destroyed 12 | . 12 Melee 2 | . 2 Guns 10 | . 10 Classes Destroyed 8 | 1 7 Worker 2 | . 2 Tunneler 3 | 2 1 Hauler 2 | . 2 Recycler 1 | . 1 Operator 3 | . 3 Watcher 2 | . 2 Swarmer 3 | . 3 Grunt 9 | . 9 Best Kill Streak 10 | 2 10 Combat Bots Only 3 | . 3 Max Kills in Single Turn 2 | 1 2 Gunslinging . | . . Exploded . | . . Melee 1 | . 1 Uniques/NPCs Destroyed . | . . Combat | -11 -10 -------- Run | Yrd Mat Hostile Shots Fired 51 | . 51 Missed 14 | . 14 Damage Taken 689 | . 689 Core 251 | . 251 Absorbed by Shields . | . . Core Remaining (%) 100 | 100 . Volleys Fired 47 | 5 42 Largest 2 | 2 2 Hottest 100 | 80 100 Shots Fired 94 | 10 84 Gun 94 | 10 84 Cannon . | . . Launcher . | . . Special . | . . Kinetic . | . . Thermal 10 | . 10 Explosive . | . . Electromagnetic 84 | 10 74 Robot Hit Streak 9 | 2 9 Robot Miss Streak 4 | 2 4 Penetration Max . | . . Secondary Targets . | . . Shots Hit Robots 62 | 5 57 Core Hits 33 | 2 31 Critical Kills . | . . Critical Parts Destroyed . | . . Critical Strikes 1 | . 1 Burn 1 | . 1 Melee Attacks 7 | . 7 Impact 7 | . 7 Slashing . | . . Piercing . | . . Sneak Attacks 1 | . 1 Combat Hostiles . | . . Follow-up Attacks . | . . Damage Inflicted 1275 | 89 1186 Guns 867 | 64 803 Cannons . | . . Explosions 136 | 21 115 Melee 177 | . 177 Ramming 95 | 4 91 Kinetic . | . . Thermal 251 | 21 230 Explosive . | . . Electromagnetic 752 | 64 688 Impact 177 | . 177 Slashing . | . . Piercing . | . . Highest Corruption 33 | . 33 Average Corruption 22 | . 22 Corruption Purged . | . . Corruption Blocked . | . . Effects 7 | . 7 Message Errors 2 | . 2 Matter Fused 1 | . 1 Heat Flow Errors 1 | . 1 Energy Discharges 3 | . 3 Overload Shots . | . . Overflow Damage 38 | . 38 Projectiles . | . . Explosions 8 | . 8 Melee 30 | . 30 Knockbacks 1 | . 1 Impact 1 | . 1 Kinetic . | . . Secondary . | . . Self-Inflicted Damage 81 | . 81 Shots . | . . Rammed 5 | 1 4 Targets Rammed 6 | 1 5 Kicked . | . . Crushed 1 | . 1 Highest Temperature 208 | 92 208 Average Temperature 64 | 47 66 Received Heat Transfer 225 | . 225 Siege Activations . | . . Robots Corrupted 1 | . 1 Combat Hostiles . | . . Parts Fried 9 | 1 8 Impact Corruptions 3 | . 3 Robots Melted . | . . Combat Hostiles . | . . Parts Melted 2 | . 2 Heat Transferred 607 | 50 557 Parts Sabotaged . | . . Parts Stolen . | . . Parts Stripped . | . . Power Chain Reactions 4 | 1 3 Alert | -11 -10 ------- Run | Yrd Mat Peak Influence 298 | 10 298 Initial 6 | . 6 Average 117 | 2 124 Maximum Alert Level 1 | . 1 Low Security (%) 75 | 100 74 Level 1 24 | . 25 Level 2 . | . . Level 3 . | . . Level 4 . | . . Level 5 . | . . High Security . | . . Max Security . | . . Squads Dispatched 3 | . 3 Investigation . | . . Extermination . | . . Reinforcement 3 | . 3 Assault . | . . Garrison . | . . Intercept . | . . Searches Triggered . | . . Construction Impeded . | . . Haulers Reinforced . | . . Active Scanning Responses . | . . Cargo Convoy Interrupts . | . . Stealth | -11 -10 --------- Run | Yrd Mat Distress Signals 1 | . 1 Communications Jammed . | . . Distress Signals . | . . Times Spotted 22 | . 22 Peak Tracking Total 4 | . 4 Tactical Retreats 1 | . 1 Traps | -11 -10 ------- Run | Yrd Mat Traps Triggered . | . . Indirectly . | . . Trap Hack Attempts . | . . Triggered . | . . Disarmed . | . . Reprogrammed . | . . Reused . | . . Traps Extracted . | . . Installed . | . . Triggered . | . . Machines | -11 -10 ---------- Run | Yrd Mat Machines Disabled . | . . Max in Single Turn . | . . Machines Repaired . | . . Machines Dismantled . | . . Machines Sabotaged . | . . Overloaded Fab Kills . | . . Hacking | -11 -10 --------- Run | Yrd Mat Machines Accessed 5 | . 5 Terminals 5 | . 5 Fabricators . | . . Repair Stations . | . . Recycling Units . | . . Scanalyzers . | . . Garrison Access . | . . Total Hacks 13 | . 13 Successful 7 | . 7 Failed 6 | . 6 Catastrophic . | . . Database Lockouts . | . . Manual 9 | . 9 Terminals 13 | . 13 Fabricators . | . . Repair Stations . | . . Recycling Units . | . . Scanalyzers . | . . Garrison Access . | . . Terminal Hacks 2 | . 2 Locate Traps 2 | . 2 Fabricator Hacks . | . . Repair Station Hacks . | . . Recycling Unit Hacks . | . . Scanalyzer . | . . Garrison Access Hacks . | . . Unauthorized Hacks 5 | . 5 Terminals 5 | . 5 Botnet 1 | . 1 Skim 4 | . 4 Fabricators . | . . Repair Stations . | . . Recycling Units . | . . Scanalyzers . | . . Garrison Access . | . . Data Cores Recovered . | . . Used . | . . Hacking Detections 5 | . 5 Full Trace Events . | . . Feedback Events . | . . Feedback Blocked . | . . Robot Schematics Acquired . | . . Robots Built . | . . Authchips . | . . Time . | . . Total Robot Build Rating . | . . Part Schematics Acquired . | . . Parts Built . | . . Authchips . | . . Time . | . . Total Part Build Rating . | . . Parts Repaired . | . . Time . | . . Parts Recycled . | . . Recycled Matter . | . . Retrieved Matter . | . . Retrieved Components . | . . Parts Scanalyzed . | . . Part Schematics Acquired . | . . Parts Damaged . | . . Bothacking | -11 -10 ------------ Run | Yrd Mat Used RIF Installer . | . . Robots Hacked . | . . Non-combat . | . . Combat . | . . Robot Hacks Applied . | . . Relay Couplers Released . | . . Fabnet Peak Effective % . | . . Robots Rewired . | . . Allies Hacked . | . . Hacks Repelled . | . . Allies | -11 -10 -------- Run | Yrd Mat Total Allies . | . . Largest Group . | . . Highest-Rated Group . | . . Highest-Rated Ally . | . . Total Orders . | . . Ally Attacks . | . . Total Damage . | . . Kills . | . . Allies Corrupted . | . . Allies Melted . | . . Intel | -11 -10 ------- Run | Yrd Mat Robot Analysis Total . | . . Derelict Logs Recovered . | . . Drone Launches . | . . Drone Recoveries . | . . Exploration | -11 -10 ------------- Run | Yrd Mat Turns Passed 1462 | 90 1372 Spaces Moved 663 | 46 617 Core 14 | 14 . Treads 649 | 32 617 Legs . | . . Wheels . | . . Hover . | . . Flight . | . . Fastest Speed 50 | 50 160 Average Speed 157 | 126 160 Slowest Speed 160 | 160 160 Overloaded Moves . | . . Propulsion Burnouts . | . . Robots Hopped . | . . Cave-ins Triggered . | . . Exploration Rate (%) 49 | 4 94 Regions Visited 1 Branch Regions . Pre-discovered Areas . | . . Known Exits Taken . | . . Unknown Exits Taken 1 | 1 . Scrap Searched . | . . Spaces Dug 2 | . 2 Terrain Destroyed 18 | . 18 Melee 2 | . 2 Projectile . | . . AOE 16 | . 16 Terrain Rammed 44 | . 44 Walls Destroyed . | . . Machines Disabled . | . . Actions | -11 -10 --------- Run | Yrd Mat Total 843 | 65 778 Wait 37 | 2 35 Move 662 | 45 617 Hop . | . . Pick Up 19 | 5 14 Fast Attach 5 | 5 . Attach 3 | 2 1 Detach . | . . Swap 9 | . 9 Drop 5 | . 5 Fire 47 | 5 42 Melee 7 | . 7 Ram 43 | . 43 Kick . | . . Crush 6 | 1 5 Escape Stasis . | . . Rewire . | . . Trap . | . . Miscellaneous . | . . Route ------- -11/Scrapyard -10/Materials (discovered 4 exits: [*Mat x3] / [*Min]) History --------- Turn | Location | Event 6 | -11/Scrapyard | Discovered new exit (range 16) 91 | -11/Scrapyard | Entered Materials 234 | -10/Materials | Discovered new exit (range 16) 310 | -10/Materials | Build established: Mutant 816 | -10/Materials | Discovered new exit (range 8) 1136 | -10/Materials | Discovered new exit (range 4) 1213 | -10/Materials | Discovered new exit (range 16) 1324 | -10/Materials | System corruption reached 10% 1338 | -10/Materials | Core integrity fell below 50% 1424 | -10/Materials | Core integrity fell below 20% 1446 | -10/Materials | System corruption reached 30% 1463 | -10/Materials | Core destroyed Last Messages --------------- 01432_ Slammed into Wall. 01432_ Destabilizing: System corrupted (+2). 01434_ System corrupted: Matter fused (-10). 01436_ Slammed into Wall. 01436_ Destabilizing: Core damaged (-2). 01441_ Slammed into Wall. 01441_ Destabilizing: Core damaged (-7). 01445_ Slammed into Wall. 01445_ Destabilizing: System corrupted (+1). 01445_ Destabilizing: System corrupted (+2). 01450_ Slammed into Wall. 01450_ Destabilizing: Core damaged (-2). 01454_ System corrupted: Heat flow error (+106). 01454_ Slammed into Wall. 01454_ Destabilizing: Core damaged (-10). 01459_ Slammed into Wall. 01459_ Destabilizing: System corrupted (+1). 01459_ Destabilizing: Core damaged (-10). 01463_ Slammed into Wall. 01463_ Destabilizing: Core damaged (-7). Map ----- +----------------------------------------------------+ | + #????????????????? | | ####### #????????????????? | | #?????# #????????????????? | | #?????+ #????????????????? | | #?????# ####### #????????????????? | | #?????# #######+##???????????????? | | ##+#??# + / #???????????????? | | #### #### # #???????????????? | | # #???????????????? | | # != #???????????????? | | + ! #???????????????? | | """ # = #???????????????? | | """ # "Y" #???????????????? | | """ ##### # """ #???????????????? | | #???# # #?############??? | | #???# ##########?# # #??? | | """ #####+########???#^<^# T #??? | | """ #] """ #???# # #??? | | """ # !!! "T" #???# + #??? | | # !!! #???# # #??? | | + !!! #???# # #??? | | """ # [ #???# ########??? | | """ ##+###########???# ########### | | """ %[ ###??######?# # # | | !% + ! ?# # # | | = ### """ # @# """ # | | #######+#+### Y" # ; """ # | | ####?# #???"" """ + + """ "# | | "#?#* #??""" # % # T# | | ""#?# !]]#? """ ! ### # "# | | !!#?# ]]]## ???# # # | | ""#?# ]]]## ???# ########### | | !!#?# ##############+###???????? | | ""#?# #????# #???????? | | "#?# """ #????# """ """ #???????? | | ####?# """ ###### """ """ #???????? | | ###### """ + + """ """ #???????? | | # ## ### #???????? | | # ## #?# ! ! #???????? | | ######## #?# #???????? | | ## #??????# #?######+######???????? | | # ######## ###### #??????????? | | + #??????????? | | #[=%* #??????????? | | #=**= #??????????? | | ?##%###+####+####### #??????????? | | ??#!# T #??????####+########?????? | | ??#%#|| #??????# #?????? | | ??#[#|| #??????# #?????? | | ##%# #??????# #?????? | +----------------------------------------------------+ Best States ------------- Heat Dissipation 25 Energy Generation 10 Energy Capacity 250 Matter Stores 300 Matter Capacity 300 Sight Range 16 Terrain Scan Density 10 Evasion (%) 50 Recoil Reduction 2 Item Schematics ----------------- None Robot Schematics ------------------ None Fabricated ------------ Nothing Alien Tech Used ----------------- None Achievements -------------- None Challenges ------------ None Game ------ Seed SapperLatentArmor Manual? 0 Play Time 00:11:29 Cumulative 66.7 hours Start 2024.12.05 @ 18:23:22 End 2024.12.05 @ 18:32:21 Sessions 1 Manual Loads 0 Difficulty Rogue Special Mode None Game No. 63 Rogue 63 Adventurer 0 Explorer 0 Win Type - Total 2 Types 2/0/0/0/0/0/0/0/0 Lore% 32 Gallery% 44 Achievement% 44 Wizard Run 0 Options --------- Layout 1 ASCII 0 Keyboard 0 Movement Arrows Keybinds 0 Fullscreen 1 Font 24/Smallcaps Map View 50x35 Zoom Use 0% Tactical HUD 1 Map Filters NONE Filters NONE Steam 1 RUN: bdcad67f-e410-4126-a577-097028a90d10